bitfinex/quotes_ETHUSD_20250329
["timestamp","ask_amount","ask_price","bid_price","bid_amount"]
[1743228099305,0.7933,1890.9,1890.4,0.60348014]
[1743228099505,7.9434175,1891.3,1890.5,0.7954]
[1743228099739,0.7933,1890.8,1890.5,0.21512669]
[1743228099902,6.08229,1890.8,1890.3,16.3043]
[1743228100108,6.08223,1890.8,1890.4,5.50547058]
[1743228101138,6.08223,1890.8,1890.5,1.07858733]
[1743228101338,6.08223,1890.8,1890.5,1.29371402]
[1743228101636,11.37123,1890.8,1890.5,0.21512669]
[1743228101823,1.137123,1890.7,1890.5,0.21512669]
[1743228102034,6.426183,1890.7,1890.3,5.28993]
[1743228102236,6.426183,1890.7,1890.6,0.21455285]
[1743228102416,1.137123,1890.7,1890.4,5.28979]
[1743228102746,6.08223,1890.8,1890.5,0.21512669]
[1743228104630,11.37121,1890.8,1890.5,0.21512669]
[1743228105028,6.08223,1890.8,1890.5,0.21512669]
[1743228105652,0.7933,1890.8,1890.5,5.50471669]
[1743228107254,6.08212,1890.8,1890.5,0.21512669]
[1743228107441,7.71208,1890.8,1890.5,0.21512669]
[1743228109354,2.42326,1890.8,1890.6,5.28932]
[1743228109649,2.42326,1890.8,1890.5,0.21512669]
[1743228109650,0.7933,1890.8,1890.5,5.50471669]
[1743228109858,0.7933,1890.8,1890.7,0.21401791]
[1743228110035,0.7933,1890.8,1890.6,0.21459169]
[1743228110233,0.7933,1890.8,1890.7,0.21401791]
[1743228110554,6.08206,1890.8,1890.4,5.28971]
[1743228110755,6.08206,1890.8,1890.7,0.21401791]
[1743228110756,7.712015,1890.8,1890.7,0.21401791]
[1743228110935,7.712015,1890.8,1890.4,5.28971]
[1743228111135,7.712015,1890.8,1890.7,0.21401791]
[1743228111324,7.712015,1890.8,1890.4,5.28971]
[1743228111520,2.423255,1890.8,1890.7,0.21401791]
[1743228111723,2.423255,1890.8,1890.5,5.28941]
[1743228111936,2.423255,1890.8,1890.7,0.21401791]
[1743228112140,2.423255,1890.8,1890.6,0.21459169]
[1743228112334,2.423255,1890.8,1890.7,0.21401791]
[1743228112651,0.7933,1890.8,1890.7,0.21401791]
[1743228113073,3.7829,1891.0,1890.7,0.21401791]
[1743228113275,3.7829,1891.0,1890.7,5.50292791]
[1743228114429,9.07115,1891.0,1890.7,0.21401791]
[1743228116271,3.7829,1891.0,1890.7,5.50287791]
[1743228116472,0.7843,1891.2,1891.0,5.28794]
[1743228116767,0.7843,1891.2,1891.1,0.21112258]
[1743228117177,0.7843,1891.2,1890.9,6.36023681]
[1743228117390,0.7843,1891.2,1891.1,0.21112258]
[1743228117701,1.391467,1891.2,1891.0,0.21169611]
[1743228117849,1.391467,1891.2,1891.1,0.21112258]
[1743228118202,1.391467,1891.2,1890.9,6.36023681]
[1743228118480,1.391467,1891.2,1891.0,0.21169611]
[1743228119577,9.0866375,1891.1,1891.0,0.21169611]
[1743228119776,10.05601795,1891.1,1890.6,5.28916]
[1743228120075,12.32976045,1891.1,1891.0,0.21053008]
[1743228120265,12.32976045,1891.1,1890.6,5.28916]
[1743228120469,0.7843,1891.1,1890.8,5.28865]
[1743228120780,0.7843,1891.1,1890.9,0.21110367]
[1743228121584,6.0724,1891.1,1890.9,0.21110367]
[1743228121782,6.0724,1891.1,1890.6,12.47396519]
[1743228121960,6.0724,1891.1,1891.0,0.21053008]
[1743228122296,2.28246345,1891.1,1890.8,5.28863]
[1743228122454,2.28246345,1891.1,1891.0,0.21053008]
[1743228122656,2.28246345,1891.1,1890.9,0.21110367]
[1743228122879,2.28246345,1891.1,1891.0,0.21053008]
[1743228123071,7.57038345,1891.1,1891.0,0.21053008]
[1743228123267,7.57038345,1891.1,1890.7,5.2889]
[1743228123456,6.07222,1891.1,1891.0,0.21070443]
[1743228123655,6.07222,1891.1,1890.7,5.2889]
[1743228124183,6.07222,1891.1,1890.8,0.21194855]
[1743228124781,6.07222,1891.1,1890.7,4.95084855]
[1743228124953,6.07222,1891.1,1890.9,0.19371252]
[1743228125153,0.607222,1891.0,1890.7,4.95084855]
[1743228125385,6.07222,1891.1,1891.0,0.19313893]
[1743228125584,6.07222,1891.1,1890.7,4.95084855]
[1743228125879,6.07222,1891.1,1891.0,0.19313893]
[1743228126379,6.07222,1891.1,1890.7,4.95084855]
[1743228126586,0.7843,1891.1,1891.0,0.19313893]
[1743228126756,1.4522117,1891.1,1890.8,5.28865]
[1743228126951,1.4522117,1891.1,1891.0,0.19313893]
[1743228127171,0.607167,1891.2,1890.7,0.7567]
[1743228127371,3.0,1891.2,1891.0,0.19313893]
[1743228127676,8.28769,1891.2,1891.1,0.1925654]
[1743228127873,3.0,1891.2,1890.8,5.2885]
[1743228128071,3.0,1891.2,1890.9,5.48219252]
[1743228128276,8.28765,1891.2,1890.9,0.19371252]
[1743228128498,15.011002,1891.2,1890.9,0.19371252]
[1743228129795,5.28793,1891.1,1890.9,0.19371252]
[1743228130004,6.068,1891.0,1890.6,6.35417519]
[1743228130870,6.068,1891.0,1890.6,11.64329519]
[1743228131204,0.7798,1891.0,1890.7,5.28902]
[1743228132102,0.7798,1891.2,1890.7,1.97391015]
[1743228132293,0.7798,1891.2,1890.8,5.28855]
[1743228132466,0.7798,1891.2,1890.9,0.19375127]
[1743228132672,3.7798,1891.2,1890.9,5.48210127]
[1743228137808,3.7798,1891.2,1891.0,1.06820772]
[1743228138003,3.7798,1891.2,1891.0,1.2613854]
[1743228138499,9.06746,1891.2,1891.0,1.2613854]
[1743228142626,9.06746,1891.2,1891.0,0.19317768]
[1743228142834,9.06746,1891.2,1890.5,6.46403944]
[1743228142835,5.28871,1890.9,1890.5,6.46403944]
[1743228142992,5.28894,1890.8,1890.5,1.04226307]
[1743228143405,5.28891,1890.8,1890.5,1.04226307]
[1743228143622,5.28917,1890.7,1890.3,34.44431808]
[1743228144129,5.28917,1890.7,1890.3,39.73426808]
[1743228144326,5.28917,1890.7,1890.4,2.71196749]
[1743228145110,5.28917,1890.7,1890.3,6.45311808]
[1743228145509,5.28917,1890.7,1890.3,1.16316808]
[1743228145737,6.11876,1890.6,1890.3,0.39426808]
[1743228146031,6.11876,1890.6,1890.2,6.05933]
[1743228146737,6.11876,1890.6,1890.2,0.7689]
[1743228146904,5.28962,1890.5,1890.1,5.69608423]
[1743228147103,5.28962,1890.5,1890.1,6.46487423]
[1743228147294,5.29,1890.4,1890.1,0.7689]
[1743228147505,5.28962,1890.5,1890.1,0.7689]
[1743228147733,5.29001,1890.4,1890.0,6.05962]
[1743228148622,5.29001,1890.4,1890.0,0.7689]
[1743228148931,6.1196,1890.3,1889.9,33.28222]
[1743228150835,11.41003,1890.3,1889.9,27.991]
[1743228151033,5.29057,1890.2,1889.9,27.991]
[1743228152027,6.1196,1890.3,1889.9,27.991]
[1743228152232,5.29058,1890.2,1889.9,27.991]
[1743228154256,5.29058,1890.2,1890.0,0.18459182]
[1743228157017,5.29072,1890.1,1890.0,0.18459182]
[1743228157867,5.28542927,1890.1,1890.0,0.18459182]
[1743228158066,6.3430302,1890.1,1890.0,0.18459182]
[1743228158232,7.1149302,1890.1,1890.0,0.18459182]
[1743228158422,10.1149302,1890.1,1890.0,0.18459182]
[1743228158748,10.1149302,1890.1,1889.5,0.7933]
[1743228158749,5.29168,1889.8,1889.5,0.7933]
[1743228161559,5.29137,1889.9,1889.5,6.08566]
[1743228161760,5.29137,1889.9,1889.5,7.26900044]
[1743228162260,10.58289,1889.9,1889.5,7.26900044]
[1743228162839,10.58289,1889.9,1889.5,1.97664044]
[1743228162840,5.29161,1889.8,1889.5,1.97664044]
[1743228163665,5.29186,1889.7,1889.5,1.97664044]
[1743228163853,5.29186,1889.7,1889.5,0.7933]
[1743228164666,5.29186,1889.7,1889.3,6.08604]
[1743228165668,5.29186,1889.7,1889.3,6.47495599]
[1743228168470,5.29186,1889.7,1889.3,6.08604]
[1743228168679,5.29186,1889.7,1889.3,11.37886]
[1743228169149,5.29186,1889.7,1889.4,0.18884872]
[1743228169353,6.06351,1889.8,1889.4,0.18884872]
[1743228169562,11.35534,1889.8,1889.4,5.48146872]
[1743228169767,6.06351,1889.8,1889.4,5.48142872]
[1743228170064,5.29191,1889.7,1889.4,0.18884872]
[1743228170466,11.3553,1889.8,1889.4,5.48149872]
[1743228170665,5.29187,1889.7,1889.4,0.18884872]
[1743228170889,3.7624,1890.0,1889.6,5.29201]
[1743228171049,5.29137,1889.9,1889.5,6.11065]
[1743228171348,5.29137,1889.9,1889.6,0.18769978]
[1743228172457,3.0,1889.8,1889.6,0.18769978]
[1743228172652,5.29137,1889.9,1889.6,0.18769978]
[1743228172886,3.0,1889.8,1889.6,0.18769978]
[1743228173680,5.29137,1889.9,1889.6,0.18769978]
[1743228173987,3.0,1889.8,1889.6,0.18769978]
[1743228174584,6.05291,1890.2,1889.7,5.29184]
[1743228174792,7.264201,1890.2,1889.8,1.0051407]
[1743228175086,3.0,1890.1,1889.8,1.0051407]
[1743228175490,5.29102,1890.0,1889.8,0.1868407]
[1743228175788,5.29102,1890.0,1889.6,6.11041]
[1743228175988,5.29102,1890.0,1889.7,0.18741502]
[1743228176189,8.29073,1890.1,1889.7,5.29183]
[1743228176391,8.29073,1890.1,1889.8,0.1868407]
[1743228176563,9.3171721,1890.1,1889.8,0.1868407]
[1743228177196,14.6081521,1890.1,1889.8,0.1868407]
[1743228177792,5.29105,1890.0,1889.8,0.1868407]
[1743228177994,5.29105,1890.0,1889.6,6.11037]
[1743228178199,8.29105,1890.0,1889.9,0.18642086]
[1743228178394,9.10881674,1890.0,1889.6,6.11037]
[1743228178561,8.29105,1890.0,1889.9,0.18642086]
[1743228178762,8.29105,1890.0,1889.6,6.11037]
[1743228178961,8.29105,1890.0,1889.7,0.18756943]
[1743228179183,8.29105,1890.0,1889.6,6.11037]
[1743228179390,8.29105,1890.0,1889.3,11.4041]
[1743228179391,5.29159,1889.8,1889.3,11.4041]
[1743228179563,5.29159,1889.8,1889.3,12.54441]
[1743228179896,5.29159,1889.8,1889.4,5.29255]
[1743228181095,5.29159,1889.8,1889.3,7.25155]
[1743228181260,5.29186,1889.7,1889.3,12.5444]
[1743228182010,5.29186,1889.7,1889.4,0.8169]
[1743228182167,5.29109,1890.0,1889.6,5.29211]
[1743228182500,3.0,1889.9,1889.6,5.29211]
[1743228182665,8.29129,1889.9,1889.5,5.2924]
[1743228183370,6.08271,1889.8,1889.4,0.8169]
[1743228183966,6.08271,1889.8,1889.3,7.25001]
[1743228184191,5.29187,1889.7,1889.4,0.18940862]
[1743228185989,5.29214,1889.6,1889.4,0.18940862]
[1743228186299,5.29214,1889.6,1889.2,6.11001]
[1743228186300,5.2924,1889.5,1889.2,0.8169]
[1743228186665,10.58506,1889.5,1889.2,0.8169]
[1743228187270,5.29273,1889.4,1889.2,0.8169]
[1743228187689,5.2924,1889.5,1889.2,0.8169]
[1743228188087,5.29269,1889.4,1889.2,0.8169]
[1743228190101,10.585,1889.5,1889.2,0.8169]
[1743228190306,6.08278,1889.8,1889.3,5.29283]
[1743228190468,3.0,1889.6,1889.2,0.8169]
[1743228190674,8.29223,1889.6,1889.2,6.1101]
[1743228191099,5.29253,1889.5,1889.2,0.8169]
[1743228191305,10.58521,1889.5,1889.2,0.8169]
[1743228192287,5.2927,1889.4,1889.2,0.8169]
[1743228192488,5.2927,1889.4,1889.0,6.11069]
[1743228192690,5.2927,1889.4,1889.0,7.29090798]
[1743228192988,5.2927,1889.4,1889.0,7.34384035]
[1743228193708,5.2927,1889.4,1889.0,7.29090798]
[1743228194880,5.29302,1889.3,1889.0,1.99711798]
[1743228195080,5.29302,1889.3,1889.0,0.8169]
[1743228199196,5.29302,1889.3,1889.1,0.19271622]
[1743228199827,6.09044,1889.2,1889.1,0.19271622]
[1743228200030,0.7972,1889.2,1888.9,5.29406]
[1743228200193,0.7972,1889.2,1889.1,0.19271622]
[1743228200529,0.7972,1889.2,1888.9,5.29406]
[1743228200726,0.7972,1889.2,1889.1,0.19271622]
[1743228200926,0.7972,1889.2,1889.0,0.19329097]
[1743228201114,0.7972,1889.2,1889.1,0.19271622]
[1743228201440,0.7972,1889.2,1888.9,5.29406]
[1743228201738,0.7972,1889.2,1889.1,0.19271622]
[1743228202261,0.7972,1889.2,1888.9,5.29406]
[1743228202471,0.7972,1889.2,1889.1,0.19271622]
[1743228202642,0.7972,1889.2,1888.9,5.29406]
[1743228202831,0.7972,1889.2,1889.1,0.19271622]
[1743228203032,0.7972,1889.2,1888.8,6.63519173]
[1743228203368,6.09063,1889.2,1889.1,0.19271622]
[1743228203669,7.228995,1889.2,1889.1,0.19271622]
[1743228203831,7.228995,1889.2,1888.8,6.63519173]
[1743228204031,7.228995,1889.2,1889.1,0.19271622]
[1743228204032,6.09063,1889.2,1889.1,0.19271622]
[1743228204232,6.09063,1889.2,1888.8,0.1141109]
[1743228204751,10.58747,1889.1,1888.9,0.19386578]
[1743228204957,10.58747,1889.1,1888.8,0.1141109]
[1743228205271,10.58747,1889.1,1888.9,0.19386578]
[1743228205432,5.2937,1889.1,1888.8,0.1141109]
[1743228205631,7.229315,1889.1,1889.0,0.19329097]
[1743228205990,6.091,1889.0,1888.9,0.17839969]
[1743228206125,5.29408,1888.9,1888.8,0.1141109]
[1743228206330,9.09128,1888.9,1888.8,0.1141109]
[1743228206529,10.529788,1888.9,1888.8,0.1141109]
[1743228207133,13.5442055,1888.9,1888.8,0.1141109]
[1743228208456,5.89688,1888.7,1887.2,6.1580143]
[1743228208649,0.602,1887.6,1887.4,1.592718]
[1743228208896,4.972,1887.8,1887.4,5.29825]
[1743228209083,5.574,1887.8,1887.5,0.1750802]
[1743228209398,11.87887784,1887.8,1887.5,0.1750802]
[1743228209696,5.2975,1887.7,1887.3,5.29838]
[1743228210191,5.29801,1887.5,1887.4,0.17565592]
[1743228210392,11.39298,1887.6,1887.2,0.0395143]
[1743228210602,11.39298,1887.6,1887.3,0.17794563]
[1743228210603,7.233475,1887.6,1887.3,0.17794563]
[1743228210807,1.935615,1887.6,1887.3,0.17794563]
[1743228210964,7.233535,1887.6,1887.3,0.17794563]
[1743228211358,1.935615,1887.6,1887.3,0.17794563]
[1743228211695,9.08839,1887.4,1887.3,0.17794563]
[1743228211993,5.29857,1887.3,1887.2,0.0395143]
[1743228212983,4.928515,1887.6,1887.2,0.0395143]
[1743228213187,9.08805,1887.6,1887.3,0.16631838]
[1743228213685,3.0,1887.4,1887.3,0.16631838]
[1743228216195,0.7901,1887.6,1887.3,0.16631838]
[1743228216380,0.7591,1888.1,1887.7,5.29718]
[1743228216700,1.39575364,1888.1,1887.8,0.1632865]
[1743228216883,4.39575364,1888.1,1887.8,0.1632865]
[1743228218101,6.69213364,1888.1,1887.8,0.1632865]
[1743228220139,5.29664,1888.0,1887.8,0.1632865]
[1743228220340,6.49551736,1888.0,1887.8,0.1632865]
[1743228220489,11.79238736,1888.0,1887.5,6.07427]
[1743228220692,6.49551736,1888.0,1887.9,0.16271103]
[1743228221031,1.19887736,1888.0,1887.9,0.16271103]
[1743228221208,1.19887736,1888.0,1887.7,5.29733]
[1743228221499,6.05543,1888.1,1887.8,0.1632865]
[1743228222818,11.3519,1888.1,1887.8,0.1632865]
[1743228223223,5.29668,1888.0,1887.8,0.1632865]
[1743228223517,5.29668,1888.0,1887.6,5.29747]
[1743228223732,6.05543,1888.1,1887.9,0.16271103]
[1743228223928,0.605543,1888.0,1887.6,5.29747]
[1743228224139,6.05543,1888.1,1887.7,5.29743]
[1743228224632,3.7591,1888.1,1887.7,5.29723]
[1743228224998,3.7591,1888.1,1887.8,5.29716]
[1743228225232,9.05546,1888.1,1887.7,5.29723]
[1743228225821,8.29636,1888.1,1887.7,5.29723]
[1743228226632,3.0,1888.1,1887.8,5.29696]
[1743228226809,3.0,1888.1,1887.9,5.29689]
[1743228227199,3.0,1888.2,1887.9,5.29689]
[1743228227398,3.0,1888.2,1887.8,6.10936]
[1743228227594,8.29611,1888.2,1887.8,6.10936]
[1743228228408,13.59239,1888.2,1887.8,6.10936]
[1743228228614,15.633539,1888.2,1887.8,6.10936]
[1743228229241,3.0,1888.2,1887.9,5.4590037]
[1743228230643,8.29605,1888.2,1887.9,5.4590037]
[1743228231304,3.0,1888.2,1887.9,5.4590037]
[1743228234131,8.29609,1888.2,1887.9,0.1621737]
[1743228234507,3.0,1888.2,1887.9,5.4589137]
[1743228236007,8.29617,1888.2,1887.9,0.1621737]
[1743228236333,9.731274,1888.2,1887.9,0.1621737]
[1743228236719,15.027584,1888.2,1887.9,0.1621737]
[1743228237037,5.29661,1888.0,1887.9,0.1621737]
[1743228237241,6.10681,1888.0,1887.9,0.1621737]
[1743228237406,5.29693,1887.9,1887.5,5.29777]
[1743228237607,5.29718,1887.8,1887.6,0.16390031]
[1743228238009,5.29718,1887.8,1887.4,12.46329994]
[1743228238220,6.10682,1888.0,1887.4,12.46329994]
[1743228238221,5.29696,1887.9,1887.7,0.16228833]
[1743228238425,1.140378,1887.9,1887.6,5.29762]
[1743228238710,1.140378,1887.9,1887.8,0.1617128]
[1743228238909,1.140378,1887.9,1887.7,0.16228833]
[1743228239110,1.140378,1887.9,1887.8,0.1617128]
[1743228239541,1.140378,1887.9,1887.6,5.29762]
[1743228239739,6.10682,1888.0,1887.8,0.1617128]
[1743228239943,6.10682,1888.0,1887.7,0.16255697]
[1743228240113,9.10682,1888.0,1887.9,0.16140595]
[1743228240314,9.10682,1888.0,1887.8,0.16198143]
[1743228240528,9.10682,1888.0,1887.9,0.16140595]
[1743228240714,10.547135,1888.0,1887.9,0.16140595]
[1743228241244,10.547135,1888.0,1887.6,10.59505]
[1743228241410,10.547135,1888.0,1887.9,0.16140595]
[1743228241611,10.547135,1888.0,1887.6,10.59505]
[1743228241935,9.736935,1888.0,1887.7,0.16255697]
[1743228242319,9.736935,1888.0,1887.6,10.59505]
[1743228242524,9.736935,1888.0,1887.8,0.16198143]
[1743228242844,9.736935,1888.0,1887.9,0.16140595]
[1743228243019,4.440315,1888.0,1887.9,0.16140595]
[1743228243342,9.737075,1888.0,1887.6,10.59511]
[1743228243554,9.737075,1888.0,1887.9,0.16140595]
[1743228243718,9.737075,1888.0,1887.6,5.29751]
[1743228243917,9.737075,1888.0,1887.9,0.16140595]
[1743228244244,4.440315,1888.0,1887.9,0.16140595]
[1743228244441,4.440315,1888.0,1887.7,6.08653]
[1743228244751,9.736965,1888.0,1887.9,0.16140595]
[1743228244959,9.736965,1888.0,1887.8,0.16198143]
[1743228245265,9.736965,1888.0,1887.9,0.16140595]
[1743228245652,4.440315,1888.0,1887.7,6.08662]
[1743228245956,3.0,1888.0,1887.9,0.16140595]
[1743228246131,3.0,1888.0,1887.8,0.16198143]
[1743228246331,3.0,1888.0,1887.9,0.16140595]
[1743228246733,3.0,1888.0,1887.7,6.08662]
[1743228247058,3.0,1888.0,1887.8,0.16198143]
[1743228250831,11.09872,1888.4,1887.8,6.08400157]
[1743228251030,8.29621,1888.2,1887.8,5.45914143]
[1743228251231,0.8101,1888.1,1887.8,0.16198143]
[1743228251468,5.29678,1888.0,1887.6,5.29751]
[1743228251672,5.29678,1888.0,1887.9,0.16150187]
[1743228251827,5.29678,1888.0,1887.6,5.29751]
[1743228252231,5.29678,1888.0,1887.7,0.16265288]
[1743228252465,5.29678,1888.0,1887.6,5.29751]
[1743228252772,5.29678,1888.0,1887.8,0.16207735]
[1743228252944,5.907468,1888.0,1887.7,0.16265288]
[1743228253146,5.907468,1888.0,1887.9,0.16150187]
[1743228253350,5.907468,1888.0,1887.8,0.16207735]
[1743228253672,5.907468,1888.0,1887.6,5.29751]
[1743228253880,5.29678,1888.0,1887.9,0.16150187]
[1743228254033,5.29678,1888.0,1887.6,5.29751]
[1743228254355,5.29678,1888.0,1887.7,1.23583397]
[1743228256068,0.8101,1888.1,1887.7,1.23583397]
[1743228256257,5.29709,1887.9,1887.7,0.16265288]
[1743228256456,6.356461,1887.9,1887.7,0.16265288]
[1743228256635,6.356461,1887.9,1887.5,6.08701]
[1743228256830,6.356461,1887.9,1887.6,0.16317091]
[1743228257037,5.29745,1887.7,1887.6,0.16317091]
[1743228257236,5.29745,1887.7,1887.2,10.6369843]
[1743228257545,0.610895,1887.7,1887.4,5.29818]
[1743228257860,6.10867,1887.8,1887.5,0.16374657]
[1743228258590,6.053371,1887.9,1887.5,0.16374657]
[1743228258591,11.350271,1887.9,1887.5,5.46167657]
[1743228259271,11.350271,1887.9,1887.5,5.46153657]
[1743228259454,11.350271,1887.9,1887.5,0.16374657]
[1743228259455,6.053371,1887.9,1887.5,0.16374657]
[1743228259656,5.29747,1887.7,1887.5,0.16374657]
[1743228260361,6.10897,1887.7,1887.5,0.16374657]
[1743228260742,6.10897,1887.7,1887.3,5.2985]
[1743228260941,6.10897,1887.7,1887.6,0.16317091]
[1743228261244,7.249609,1887.7,1887.6,0.16317091]
[1743228261560,7.249609,1887.7,1887.3,5.2985]
[1743228261743,7.249609,1887.7,1887.6,0.16359316]
[1743228262162,7.249609,1887.7,1887.3,10.59693]
[1743228262364,6.10897,1887.7,1887.6,0.16359316]
[1743228262573,12.161821,1887.9,1887.4,5.29829]
[1743228262760,12.161821,1887.9,1887.6,0.16359316]
[1743228263070,12.161821,1887.9,1887.7,0.16301757]
[1743228263570,12.161821,1887.9,1887.5,6.06706]
[1743228263770,15.161821,1887.9,1887.8,0.16244203]
[1743228263974,15.161821,1887.9,1887.5,6.06706]
[1743228264173,15.161821,1887.9,1887.8,0.16244203]
[1743228264351,4.059371,1887.9,1887.5,0.7692]
[1743228264686,3.8115,1888.1,1887.8,5.45961203]
[1743228264855,3.0,1888.1,1887.8,6.06637]
[1743228265176,3.0,1888.1,1887.9,0.1621928]
[1743228266288,8.29633,1888.1,1887.9,0.1621928]
[1743228267592,8.29661,1888.0,1887.9,0.1621928]
[1743228267961,9.655904,1888.0,1887.9,0.1621928]
[1743228268291,9.655904,1888.0,1887.6,6.06675]
[1743228268491,9.655904,1888.0,1887.9,0.1621928]
[1743228268679,9.655904,1888.0,1887.6,6.06675]
[1743228269075,9.655904,1888.0,1887.7,0.16334381]
[1743228269391,9.655904,1888.0,1887.6,6.06675]
[1743228269589,5.29689,1887.9,1887.8,0.16276827]
[1743228269796,6.8733194,1887.9,1887.7,0.16334381]
[1743228269960,5.29689,1887.9,1887.8,0.16244203]
[1743228270159,5.29689,1887.9,1887.6,1.81870105]
[1743228270591,5.29689,1887.9,1887.7,0.16301757]
[1743228270895,5.29689,1887.9,1887.6,1.81870105]
[1743228271101,5.29689,1887.9,1887.8,0.16244203]
[1743228271401,5.29689,1887.9,1887.6,1.81870105]
[1743228271688,3.0,1888.0,1887.7,0.16301757]
[1743228271897,3.0,1888.0,1887.7,5.29733]
[1743228272196,3.0,1888.0,1887.8,0.16244203]
[1743228272405,3.0,1888.4,1887.9,5.29671]
[1743228272568,14.05494,1888.4,1887.9,6.11401]
[1743228272767,3.0,1888.2,1888.0,0.16129114]
[1743228274298,5.29564,1888.4,1888.0,0.16129114]
[1743228274299,3.0,1888.4,1888.0,0.16129114]
[1743228274502,9.930894,1888.4,1888.0,5.45771114]
[1743228275571,5.29578,1888.3,1887.9,7.18454522]
[1743228275806,5.29578,1888.3,1888.1,0.159718]
[1743228276009,5.29578,1888.3,1888.0,0.16029335]
[1743228276209,8.29578,1888.3,1888.2,0.1591427]
[1743228276412,9.8184474,1888.3,1888.1,0.159718]
[1743228276708,10.5797474,1888.3,1888.2,0.1591427]
[1743228276908,5.29632,1888.2,1887.7,5.29739]
[1743228277214,10.59264,1888.2,1887.7,6.11469]
[1743228277434,5.29637,1888.1,1887.7,7.16962431]
[1743228279123,0.7613,1888.0,1887.7,1.05493431]
[1743228279297,6.05802,1888.0,1887.7,1.05493431]
[1743228280327,5.29721,1887.8,1887.4,5.29801]
[1743228281031,5.29705,1887.9,1887.4,5.29801]
[1743228281333,5.29705,1887.9,1887.4,5.909541]
[1743228281919,10.59417,1887.9,1887.4,11.207701]
[1743228282119,5.29705,1887.9,1887.4,5.909541]
[1743228282433,10.5942,1887.9,1887.4,5.909541]
[1743228282642,5.29718,1887.8,1887.4,5.909541]
[1743228283215,6.05896,1887.7,1887.3,6.11587]
[1743228285651,0.7613,1887.7,1887.4,5.29825]
[1743228286071,0.7613,1887.7,1887.3,6.11587]
[1743228286654,6.05876,1887.7,1887.3,6.11587]
[1743228286856,6.05876,1887.7,1887.3,6.73670668]
[1743228287056,6.05876,1887.7,1887.3,12.03515668]
[1743228287446,0.7613,1887.7,1887.3,12.03515668]
[1743228287947,0.7613,1887.7,1887.4,5.29828]
[1743228288528,0.806,1887.9,1887.3,1.43813668]
[1743228288844,0.806,1887.9,1887.6,5.29756]
[1743228289338,0.806,1887.9,1887.7,0.16353567]
[1743228289538,6.10262,1888.0,1887.6,6.07886]
[1743228289732,6.10262,1888.0,1887.8,0.16296013]
[1743228289928,5.29662,1888.0,1887.6,6.07879]
[1743228290136,8.29662,1888.0,1887.9,0.16238465]
[1743228290324,4.329262,1888.0,1887.7,5.29738]
[1743228290524,3.0,1888.0,1887.9,0.16238465]
[1743228290725,3.0,1888.0,1887.7,5.29738]
[1743228290950,3.0,1888.0,1887.9,0.16238465]
[1743228291151,3.0,1888.0,1887.7,5.29738]
[1743228291351,3.0,1888.0,1887.9,0.16238465]
[1743228291551,3.0,1888.0,1887.7,5.29738]
[1743228291859,3.0,1888.0,1887.9,0.16238465]
[1743228292039,3.0,1888.0,1887.8,0.16296013]
[1743228292239,3.0,1888.0,1887.9,0.16238465]
[1743228293057,3.0,1888.0,1887.7,5.29722]
[1743228293258,3.0,1888.0,1887.9,0.16238465]
[1743228293440,3.0,1888.0,1887.8,0.16296013]
[1743228293639,3.0,1888.0,1887.9,0.16238465]
[1743228293961,3.0,1888.0,1887.7,5.29722]
[1743228294166,3.0,1888.0,1887.9,0.16238465]
[1743228294468,3.0,1888.0,1887.7,5.29722]
[1743228294669,3.0,1888.0,1887.9,0.16238465]
[1743228294874,3.0,1888.0,1887.8,0.16296013]
[1743228295043,3.0,1888.0,1887.9,0.16132917]
[1743228295362,3.0,1888.0,1887.7,5.29722]
[1743228295564,3.0,1888.0,1887.9,0.16132917]
[1743228295753,3.0,1888.0,1887.7,5.29722]
[1743228295951,3.0,1888.0,1887.9,0.16132917]
[1743228296176,3.0,1888.0,1887.7,5.29722]
[1743228296382,3.0,1888.0,1887.9,0.16132917]
[1743228296760,3.0,1888.0,1887.7,5.29722]
[1743228296961,3.0,1888.0,1887.9,0.16132917]
[1743228297192,3.0,1888.0,1887.7,5.29722]
[1743228297356,3.0,1888.0,1887.9,0.16132917]
[1743228297561,8.29663,1888.0,1887.6,6.07903]
[1743228297785,8.29663,1888.0,1887.9,0.16132917]
[1743228297991,9.655938,1888.0,1887.9,0.16132917]
[1743228298194,9.655938,1888.0,1887.6,6.07903]
[1743228298396,8.29663,1888.0,1887.9,0.16132917]
[1743228298565,8.29663,1888.0,1887.6,6.07903]
[1743228298766,8.29663,1888.0,1887.9,0.16132917]
[1743228298974,8.29663,1888.0,1887.6,6.07903]
[1743228299191,8.29663,1888.0,1887.9,0.16132917]
[1743228299391,9.655938,1888.0,1887.9,0.16132917]
[1743228299592,9.655938,1888.0,1887.6,6.07903]
[1743228299791,8.29663,1888.0,1887.9,0.16132917]
[1743228300091,8.29663,1888.0,1887.6,6.07903]
[1743228300265,8.29663,1888.0,1887.9,0.16132917]
[1743228300774,8.29663,1888.0,1887.6,6.07903]
[1743228300996,8.29663,1888.0,1887.9,0.16132917]
[1743228301196,8.29663,1888.0,1887.6,6.07903]
[1743228301398,8.29663,1888.0,1887.9,0.16132917]
[1743228301587,8.29663,1888.0,1887.6,6.07903]
[1743228301789,8.29663,1888.0,1887.9,0.16132917]
[1743228301965,8.29663,1888.0,1887.6,6.07903]
[1743228302165,8.29663,1888.0,1887.9,0.16132917]
[1743228302365,8.29663,1888.0,1887.6,6.07903]
[1743228302566,8.29663,1888.0,1887.9,0.16132917]
[1743228302898,8.29663,1888.0,1887.6,6.07903]
[1743228303076,8.29663,1888.0,1887.9,0.16132917]
[1743228303276,8.29663,1888.0,1887.6,6.07903]
[1743228303473,8.29663,1888.0,1887.9,0.16132917]
[1743228303687,14.952768,1888.0,1887.6,0.7813]
[1743228303897,13.59346,1888.0,1887.6,0.7813]
[1743228304067,13.59346,1888.0,1887.7,0.16248019]
[1743228304268,5.29696,1887.9,1887.7,0.16248019]